bitfinex-derivatives/quotes_SOLF0:USTF0_20250409
["timestamp","ask_amount","ask_price","bid_price","bid_amount"]
[1744231379807,0.06013227,118.94,118.92,62.06158883]
[1744231380799,0.06013227,118.94,118.92,0.06158883]
[1744231381507,3.54570668,118.93,118.92,0.06158883]
[1744231381711,0.06013227,118.94,118.92,0.06158883]
[1744231382112,3.54729104,118.93,118.92,0.06158883]
[1744231383510,0.06013227,118.94,118.92,0.06158883]
[1744231383710,3.54651017,118.93,118.92,0.06158883]
[1744231384111,0.06013227,118.94,118.92,0.06158883]
[1744231384409,3.54590792,118.93,118.92,0.06158883]
[1744231387020,0.06013227,118.94,118.92,0.06158883]
[1744231390212,0.06013227,118.94,118.93,34.64]
[1744231390420,34.97170349,118.98,118.93,51.19503928]
[1744231390616,3.54211095,118.97,118.93,51.19503928]
[1744231390806,34.97170349,118.98,118.93,51.19503928]
[1744231391213,34.97170349,118.98,118.95,16.55503928]
[1744231391413,34.97170349,118.98,118.96,34.64]
[1744231391615,35.03413702,118.98,118.96,34.64]
[1744231393114,35.03413702,118.98,118.95,0.05797641]
[1744231393312,9.40712848,118.97,118.95,0.05797641]
[1744231393509,5.87080117,118.96,118.95,0.05797641]
[1744231393708,9.40735789,118.96,118.95,0.05797641]
[1744231394017,9.4058391,118.96,118.95,0.05797641]
[1744231394514,17.8151391,118.96,118.95,0.05797641]
[1744231395119,9.4058391,118.96,118.95,0.05797641]
[1744231395928,9.40966738,118.96,118.95,0.05797641]
[1744231397218,5.87311066,118.96,118.95,0.05797641]
[1744231397616,0.06243353,118.98,118.95,0.05797641]
[1744231398514,0.06243353,118.98,118.96,34.64]
[1744231400812,0.06243353,118.98,118.96,96.64]
[1744231406628,34.64,119.03,118.96,96.64]
[1744231406927,14.26657402,119.02,118.96,96.64]
[1744231407128,8.4054,119.02,118.96,96.64]
[1744231407322,19.96901716,119.01,118.96,107.22051863]
[1744231407627,14.31968844,119.0,118.97,0.06136425]
[1744231407820,8.46003444,119.0,118.97,0.06136425]
[1744231408019,0.05343444,119.0,118.97,0.06136425]
[1744231408217,3.58223412,119.0,118.97,0.06136425]
[1744231408415,0.05343444,119.0,118.97,0.06136425]
[1744231408625,3.5822436,119.0,118.97,0.06136425]
[1744231409233,10.58051863,118.98,118.93,34.64]
[1744231409431,24.53583942,118.97,118.93,34.64]
[1744231409623,8.4094,118.96,118.93,34.64]
[1744231410130,16.8248,118.92,118.72,25.21]
[1744231410336,407.59925477,118.91,118.8,10.58051863]
[1744231410530,0.06321491,118.85,118.82,10.64198866]
[1744231410729,5.86283725,118.86,118.82,10.58051863]
[1744231410930,0.05935157,118.85,118.82,10.63956714]
[1744231411431,0.05935157,118.85,118.82,0.05904851]
[1744231412933,5.33676671,118.84,118.82,0.05904851]
[1744231414026,0.05935157,118.85,118.82,0.05904851]
[1744231416633,34.66,118.84,118.82,0.05904851]
[1744231416829,51.23368382,118.84,118.78,34.64]
[1744231417230,8.4197,118.82,118.75,666.43368382]
[1744231417529,51.23368382,118.84,118.75,666.43368382]
[1744231417729,16.57368382,118.82,118.75,649.86]
[1744231417933,18.75191839,118.81,118.78,0.05821657]
[1744231418136,13.79396155,118.81,118.78,0.05821657]
[1744231418446,0.05390554,118.81,118.78,0.05821657]
[1744231418635,10.5435,118.8,118.78,0.05821657]
[1744231418839,10.5435,118.8,118.75,44.66]
[1744231419542,2.1226,118.8,118.75,44.66]
[1744231419735,2.1226,118.8,118.76,62.0]
[1744231419938,2.1226,118.8,118.76,62.05387078]
[1744231420743,16.57368382,118.78,118.76,0.05387078]
[1744231420939,51.17368382,118.78,118.71,34.6]
[1744231421335,8.4239,118.76,118.71,34.6]
[1744231422239,0.05718855,118.75,118.71,34.6]
[1744231423636,0.05718855,118.75,118.71,96.6]
[1744231432247,0.05718855,118.75,118.71,100.86727183]
[1744231433648,0.05718855,118.75,118.72,16.57368382]
[1744231437346,648.9204,118.81,118.74,16.57368382]
[1744231437542,648.9204,118.81,118.74,51.21368382]
[1744231437851,43.0604,118.81,118.74,51.21368382]
[1744231438547,0.05475376,118.79,118.76,0.06396688]
[1744231442259,0.05475376,118.79,118.76,16.6376507]
[1744231442758,0.05475376,118.79,118.76,0.06396688]
[1744231445041,0.05475376,118.79,118.76,4.55016688]
[1744231450562,0.05475376,118.79,118.76,21.1238507]
[1744231450862,0.05475376,118.79,118.77,34.58]
[1744231451261,0.05475376,118.79,118.77,45.19429242]
[1744231451654,0.05475376,118.79,118.78,10.61429242]
[1744231454151,65.76293298,118.81,118.78,10.61429242]
[1744231454346,27.6179867,118.83,118.8,10.61429242]
[1744231454560,27.6179867,118.83,118.82,10.61429242]
[1744231454951,34.03179941,118.83,118.82,10.61429242]
[1744231455359,13.49399256,118.83,118.81,57.84299326]
[1744231455557,6.8552867,118.83,118.81,57.84299326]
[1744231456665,6.8552867,118.83,118.81,34.63614828]
[1744231457057,0.05923234,118.84,118.81,34.63614828]
[1744231457258,0.05923234,118.84,118.82,16.56924498]
[1744231462167,2.1252,118.9,118.82,16.56924498]
[1744231462362,14.78895034,118.89,118.82,16.56924498]
[1744231462567,5.3328217,118.89,118.86,16.56924498]
[1744231462770,2.1252,118.9,118.86,51.12924498]
[1744231462954,5.78935795,118.9,118.86,34.56]
[1744231463159,2.1252,118.9,118.86,51.12924498]
[1744231463361,0.06088964,118.89,118.87,0.0628417]
[1744231463572,5.39065739,118.89,118.87,0.0628417]
[1744231464070,0.06088964,118.89,118.87,0.0628417]
[1744231465471,8.48088964,118.89,118.82,16.56924498]
[1744231465771,5.31862349,118.88,118.82,16.56924498]
[1744231465973,13.73382349,118.88,118.82,16.56924498]
[1744231466171,8.4152,118.88,118.82,16.56924498]
[1744231466674,0.06374782,118.86,118.84,0.06403365]
[1744231467471,5.38033772,118.86,118.84,0.06403365]
[1744231467668,7.57453772,118.86,118.84,0.06403365]
[1744231467863,7.57453772,118.86,118.81,96.56]
[1744231468260,8.4174,118.85,118.81,96.56]
[1744231468665,8.4174,118.85,118.81,34.56]
[1744231468875,16.56924498,118.85,118.78,34.56]
[1744231469176,16.56924498,118.83,118.78,34.56]
[1744231469562,13.73626996,118.82,118.78,34.56]
[1744231469873,5.31666996,118.82,118.78,34.56]
[1744231470076,5.31666996,118.83,118.78,34.56]
[1744231470265,0.06427629,118.81,118.78,34.56]
[1744231470574,0.06427629,118.81,118.79,16.56924498]
[1744231471468,9.71906996,118.86,118.79,16.56924498]
[1744231471670,4.4024,118.86,118.81,16.56924498]
[1744231471970,4.4024,118.86,118.81,51.12924498]
[1744231472170,34.56,118.9,118.81,51.12924498]
[1744231472370,2.1,118.89,118.81,51.12924498]
[1744231472570,16.86392204,118.89,118.81,51.12924498]
[1744231472772,0.06034562,118.85,118.83,0.06386766]
[1744231475078,0.06034562,118.85,118.84,62.0]
[1744231475682,0.06034562,118.85,118.83,0.06386766]
[1744231476478,0.06034562,118.85,118.81,34.56]
[1744231476679,9.51085717,118.85,118.78,51.12924498]
[1744231476878,8.4181,118.84,118.78,51.12924498]
[1744231477079,5.32640979,118.83,118.78,51.12924498]
[1744231477378,5.32640979,118.82,118.78,51.12924498]
[1744231477573,5.38502883,118.82,118.78,51.12924498]
[1744231477768,5.38502883,118.82,118.8,16.56924498]
[1744231477970,5.38502883,118.82,118.81,34.56]
[1744231478483,0.05861904,118.82,118.81,34.56]
[1744231478675,0.05861904,118.82,118.81,96.56]
[1744231482279,2.0999,118.85,118.81,96.56]
[1744231482674,139.63875695,118.96,118.84,16.56924498]
[1744231482881,139.63875695,118.96,118.86,16.56924498]
[1744231483074,139.63875695,118.96,118.93,16.56924498]
[1744231483277,139.63875695,118.96,118.92,51.06924498]
[1744231483586,0.06438058,118.95,118.94,16.56924498]
[1744231483774,0.06438058,118.95,118.92,34.5547534]
[1744231483973,0.06438058,118.95,118.93,16.56924498]
[1744231484185,139.63875695,118.96,118.93,16.56924498]
[1744231484393,139.63875695,118.96,118.94,16.56924498]
[1744231484683,139.63875695,118.95,118.94,16.56924498]
[1744231484887,139.63875695,118.95,118.94,59.47994498]
[1744231485080,139.63875695,118.95,118.94,42.9107]
[1744231485992,139.63875695,118.95,118.94,104.9107]
[1744231487288,0.06399662,118.96,118.95,8.41]
[1744231488877,6.6947,119.01,118.95,8.41]
[1744231488878,6.6947,119.01,118.95,26.45359807]
[1744231489084,4.5948,119.01,118.95,26.45359807]
[1744231490082,0.05506554,118.99,118.97,0.05841476]
[1744231490386,0.05506554,118.99,118.97,34.53841476]
[1744231491588,0.05506554,118.99,118.98,62.0]
[1744231496193,4.5223,119.04,118.98,62.0]
[1744231496397,4.5223,119.04,118.99,26.45359807]
[1744231496601,4.5223,119.04,119.0,34.48]
[1744231496896,4.5223,119.04,118.97,34.46]
[1744231497294,9.77245206,119.04,118.97,34.46]
[1744231497489,0.06413853,119.02,118.99,0.0634531]
[1744231498798,0.06413853,119.02,118.97,34.46]
[1744231499496,0.06413853,119.02,118.97,96.46]
[1744231499796,0.06413853,119.02,118.98,0.06350316]
[1744231500787,34.52413853,119.02,118.98,0.06350316]
[1744231500995,34.52413853,119.02,118.97,27.56850316]
[1744231501201,34.52413853,119.02,118.94,34.46]
[1744231501388,5.24911217,119.01,118.94,34.46]
[1744231501795,34.46,119.02,118.94,34.46]
[1744231501982,34.46,119.02,118.97,0.0643496]
[1744231502186,0.06178476,118.99,118.97,0.0643496]
[1744231505192,34.52178476,118.99,118.91,640.0]
[1744231505596,34.46,118.99,118.91,640.0]
[1744231506399,0.05773592,118.96,118.94,0.05116455]
[1744231506899,0.05773592,118.96,118.91,34.46]
[1744231507096,34.51773592,118.96,118.88,34.46]
[1744231507298,16.55750104,118.94,118.86,16.55750104]
[1744231507495,34.46,118.93,118.84,18.02085414]
[1744231507701,42.8715,118.93,118.84,16.55750104]
[1744231507897,0.06440509,118.9,118.84,16.55750104]
[1744231508091,0.06440509,118.9,118.85,62.0]
[1744231508990,16.62190613,118.9,118.85,62.0]
[1744231509188,8.4144,118.89,118.85,62.0]
[1744231509403,16.55750104,118.88,118.83,34.46]
[1744231509796,24.97280104,118.88,118.8,51.03750104]
[1744231510099,0.06378924,118.87,118.8,51.03750104]
[1744231510500,8.47948924,118.87,118.8,51.03750104]
[1744231510696,34.54378924,118.87,118.8,34.48]
[1744231511094,24.97390104,118.86,118.8,34.48]
[1744231511299,8.4164,118.86,118.8,34.48]
[1744231511596,0.05495335,118.84,118.8,34.48]
[1744231512501,0.05495335,118.84,118.81,88.52801255]
[1744231514302,0.05495335,118.84,118.81,62.0]
[1744231520509,4.4752,118.88,118.83,26.52801255]
[1744231520818,4.4752,118.88,118.83,61.00801255]
[1744231521820,0.05921662,118.87,118.84,0.05495335]
[1744231523614,0.05921662,118.87,118.84,62.05495335]
[1744231523825,0.05921662,118.87,118.84,0.05495335]
[1744231526716,0.05921662,118.87,118.85,62.0]
[1744231531322,0.05921662,118.87,118.86,51.03635362]
[1744231531526,36.7177,118.94,118.86,51.03635362]
[1744231531826,2.2377,118.94,118.91,16.55635362]
[1744231532122,4.2512,118.95,118.9,34.48]
[1744231532716,0.05856903,118.94,118.91,0.05689137]
[1744231534526,0.05856903,118.94,118.92,62.0]
[1744231545021,0.05856903,118.94,118.91,0.05689137]
[1744231545226,6.20961993,118.94,118.91,0.05689137]
[1744231545432,5.33888907,118.94,118.91,0.05689137]
[1744231545625,19.89859127,118.94,118.91,0.05689137]
[1744231545823,7.48408907,118.94,118.91,0.05689137]
[1744231546836,15.89488907,118.94,118.91,0.05689137]
[1744231547436,10.61456903,118.94,118.91,0.05689137]
[1744231547626,6.1524004,118.93,118.91,0.05689137]
[1744231548237,10.61456903,118.94,118.91,0.05689137]
[1744231548540,6.15293777,118.93,118.91,0.05689137]
[1744231548727,11.43814813,118.92,118.91,0.05689137]
[1744231549729,5.28521036,118.92,118.91,0.05689137]
[1744231549922,11.43814813,118.92,118.91,0.05689137]
[1744231550127,5.28521036,118.92,118.91,0.05689137]
[1744231550331,11.43814813,118.92,118.91,0.05689137]
[1744231550730,5.28521036,118.92,118.91,0.05689137]
[1744231550930,11.43814813,118.92,118.91,0.05689137]
[1744231551125,5.28521036,118.92,118.91,0.05689137]
[1744231551333,11.43814813,118.92,118.91,0.05689137]
[1744231552739,19.85034813,118.92,118.91,0.05689137]
[1744231552928,11.43814813,118.92,118.91,0.05689137]
[1744231554131,5.28521036,118.92,118.91,0.05689137]
[1744231554335,11.43814813,118.92,118.91,0.05689137]
[1744231554538,5.28521036,118.92,118.91,0.05689137]
[1744231554733,11.43814813,118.92,118.91,0.05689137]
[1744231555138,5.28521036,118.92,118.91,0.05689137]
[1744231555442,11.43814813,118.92,118.91,0.05689137]
[1744231556030,11.43814813,118.92,118.84,1.46363005]
[1744231556231,9.7028558,118.91,118.85,62.0]
[1744231556430,18.11786538,118.9,118.85,62.0]
[1744231556640,5.28521036,118.89,118.85,62.0]
[1744231556945,19.85923363,118.89,118.85,62.0]
[1744231557143,6.22069227,118.88,118.86,0.05387108]
[1744231557445,0.06208995,118.88,118.86,0.05387108]
[1744231557633,11.45028163,118.87,118.86,0.05387108]
[1744231558847,5.29077101,118.87,118.86,0.05387108]
[1744231559547,0.06208995,118.88,118.86,0.05387108]
[1744231559747,6.159767,118.87,118.86,0.05387108]
[1744231560350,11.45216299,118.87,118.86,0.05387108]
[1744231561455,5.29239599,118.87,118.86,0.05387108]
[1744231562155,0.06208995,118.88,118.86,0.05387108]
[1744231564353,34.46,118.92,118.86,0.05387108]
[1744231564354,2.2527,118.93,118.87,51.01524088]
[1744231564546,6.15425509,118.92,118.89,16.55524088]
[1744231564755,34.46,118.95,118.89,16.55524088]
[1744231564947,9.71343822,118.93,118.89,16.55524088]
[1744231565244,6.15743867,118.92,118.89,16.55524088]
[1744231565445,34.46,118.95,118.89,16.55524088]
[1744231565640,0.0578705,118.92,118.89,16.61455608]
[1744231568051,0.0578705,118.92,118.9,34.46]
[1744231573255,9.73420935,118.91,118.89,0.0593152]
[1744231573454,6.1723201,118.9,118.89,0.0593152]
[1744231573760,9.73458863,118.9,118.89,0.0593152]
[1744231574159,15.03612083,118.9,118.89,0.0593152]
[1744231574456,15.03612083,118.9,118.87,34.42]
[1744231574659,60.70982951,118.89,118.8,605.52]
[1744231574859,15.03612083,118.88,118.81,34.42]
[1744231575162,15.03612083,118.87,118.81,34.42]
[1744231575354,9.73458863,118.86,118.81,34.42]
[1744231575555,6.1723201,118.85,118.81,34.42]
[1744231575856,5.35930135,118.85,118.82,0.05928808]
[1744231576053,5.3015322,118.84,118.82,0.05928808]
[1744231576661,0.05776915,118.85,118.82,0.05928808]
[1744231577954,0.05776915,118.85,118.83,62.0]
[1744231578663,0.05776915,118.85,118.82,0.05928808]
[1744231578856,9.71898111,118.84,118.82,0.05928808]
[1744231579163,11.44981833,118.83,118.82,0.05928808]
[1744231579364,5.29065146,118.83,118.82,0.05928808]
[1744231579755,11.44659883,118.83,118.82,0.05928808]
[1744231580369,5.29065146,118.83,118.82,0.05928808]
[1744231581877,8.4179,118.84,118.82,0.05928808]
[1744231582062,12.85006915,118.85,118.82,0.05928808]
[1744231582254,6.15895284,118.84,118.82,0.05928808]
[1744231582459,5.2910109,118.84,118.82,0.05928808]
[1744231582959,4.43256915,118.85,118.82,0.05928808]
[1744231583158,6.15942196,118.84,118.82,0.05928808]
[1744231583367,4.43256915,118.85,118.82,0.05928808]
[1744231583569,6.15844485,118.84,118.82,0.05928808]
[1744231584374,4.43256915,118.85,118.82,0.05928808]
[1744231584669,12.84966915,118.85,118.82,0.05928808]
[1744231585262,0.05776915,118.85,118.82,0.05928808]
[1744231586264,6.15894989,118.84,118.82,0.05928808]
[1744231586468,8.47486915,118.85,118.82,0.05928808]
[1744231586769,0.05776915,118.85,118.82,0.05928808]
[1744231587263,5.29023046,118.84,118.82,0.05928808]
[1744231587659,0.05776915,118.85,118.82,0.05928808]
[1744231589771,5.29315346,118.84,118.82,0.05928808]
[1744231590066,11.45534871,118.84,118.82,0.05928808]
[1744231590268,6.16219525,118.84,118.82,0.05928808]
[1744231591170,0.05776915,118.85,118.82,0.05928808]
[1744231591772,0.05776915,118.85,118.82,62.05928808]
[1744231591976,0.05776915,118.85,118.82,0.05928808]
[1744231592573,5.29201151,118.84,118.82,0.05928808]
[1744231593571,0.05776915,118.85,118.82,0.05928808]
[1744231593765,0.05776915,118.85,118.82,34.49928808]
[1744231594474,0.05776915,118.85,118.83,16.55524088]
[1744231595077,0.05776915,118.85,118.84,62.0]
[1744231598181,0.05776915,118.85,118.82,34.49928808]
[1744231598980,0.05776915,118.85,118.82,0.05928808]
[1744231599179,6.15096056,118.84,118.82,0.05928808]
[1744231600185,8.47496915,118.85,118.82,0.05928808]
[1744231600390,6.15159166,118.84,118.82,0.05928808]
[1744231600576,11.43558549,118.84,118.82,0.05928808]
[1744231601080,6.15159166,118.84,118.82,0.05928808]
[1744231601586,0.05776915,118.85,118.82,0.05928808]
[1744231601786,6.20846528,118.85,118.82,0.05928808]
[1744231602987,8.47486915,118.85,118.82,0.05928808]
[1744231603286,8.47486915,118.85,118.82,10.66737616]
[1744231604892,0.05776915,118.85,118.82,10.66737616]
[1744231605086,6.2067363,118.85,118.82,10.66737616]
[1744231605285,0.05776915,118.85,118.82,10.66737616]
[1744231607391,6.21051633,118.85,118.82,10.66737616]
[1744231607692,0.05776915,118.85,118.82,10.66737616]
[1744231608592,6.21047284,118.85,118.82,10.66737616]
[1744231609091,0.05776915,118.85,118.82,10.66737616]
[1744231609493,0.05776915,118.85,118.84,10.60808808]
[1744231609911,14.9929163,118.89,118.84,10.60808808]
[1744231610108,5.28563363,118.89,118.88,10.60808808]
[1744231610303,6.15595528,118.91,118.88,10.60808808]
[1744231610505,56.88367594,118.92,118.87,10.60808808]
[1744231610714,6.15664311,118.91,118.87,10.60808808]
[1744231610908,0.0596839,118.9,118.88,10.66771389]
[1744231611105,0.0596839,118.9,118.89,10.60808808]
[1744231611305,0.0596839,118.9,118.88,0.05962581]
[1744231613910,6.15677661,118.89,118.88,0.05962581]
[1744231614114,11.44484625,118.89,118.88,0.05962581]
[1744231614993,5.28806964,118.89,118.88,0.05962581]
[1744231615193,0.0596839,118.9,118.88,0.05962581]
[1744231618006,5.30484223,118.89,118.88,0.05962581]
[1744231618412,0.0596839,118.9,118.88,0.05962581]
[1744231622012,0.0596839,118.9,118.89,78.55442681]
[1744231624222,0.0596839,118.9,118.89,62.0]
[1744231624818,0.0596839,118.9,118.88,34.45962581]
[1744231628020,0.0596839,118.9,118.89,62.0]
[1744231629023,5.290807,118.93,118.89,78.55442681]
[1744231629221,5.290807,118.93,118.91,16.55442681]
[1744231629523,9.71059045,118.96,118.91,50.95442681]
[1744231629708,6.15794761,118.95,118.91,50.95442681]
[1744231629909,5.290807,118.97,118.91,50.95442681]
[1744231630122,0.06228341,118.94,118.92,0.06041147]
[1744231630822,14.56437659,118.93,118.92,0.06041147]
[1744231631115,18.1152962,118.93,118.92,0.06041147]
[1744231631420,23.4006952,118.93,118.92,0.06041147]
[1744231631720,14.9891952,118.93,118.92,0.06041147]
[1744231632230,23.4006952,118.93,118.92,0.06041147]
[1744231633026,8.4127,118.92,118.88,62.0]
[1744231633220,6.15287659,118.91,118.85,20.85782681]
[1744231633420,24.12642581,118.93,118.85,20.85782681]
[1744231633625,18.11363842,118.92,118.85,20.85782681]
[1744231633827,6.14899128,118.91,118.85,20.85782681]
[1744231634016,8.4122,118.92,118.85,20.85782681]
[1744231634326,0.0593656,118.89,118.87,0.05674863]
[1744231636225,0.0593656,118.89,118.88,62.0]
[1744231639925,6.15844571,118.91,118.88,62.0]
[1744231640128,5.28920206,118.91,118.88,62.0]
[1744231640619,3.55569459,118.92,118.88,62.0]
[1744231640820,6.15954448,118.91,118.88,62.0]
[1744231641019,2.2866,118.93,118.88,62.0]
[1744231641222,0.06450462,118.91,118.88,62.0]
[1744231645529,0.06450462,118.91,118.89,10.5938189]
[1744231647826,6.1705731,118.9,118.89,10.5938189]
[1744231648027,11.47033433,118.9,118.89,10.5938189]
[1744231648627,11.47033433,118.9,118.89,72.5938189]
[1744231650536,11.47821246,118.9,118.89,72.5938189]
[1744231650931,15.04428965,118.9,118.87,0.05674863]
[1744231651134,11.47821246,118.89,118.87,0.05674863]
[1744231651334,5.29976123,118.89,118.87,0.05674863]
[1744231651837,0.06450462,118.91,118.87,0.05674863]
[1744231652023,9.74931368,118.9,118.87,0.05674863]
[1744231652226,6.1809215,118.89,118.87,0.05674863]
[1744231652433,6.1809215,118.88,118.87,0.05674863]
[1744231652634,11.49339196,118.88,118.87,0.05674863]
[1744231652934,15.06439325,118.88,118.87,0.05674863]
[1744231654137,5.31247046,118.88,118.87,0.05674863]
[1744231654338,15.07023664,118.88,118.87,0.05674863]
[1744231659259,34.07945554,118.88,118.85,62.0]
[1744231659458,10.5938189,118.86,118.83,34.34]
[1744231659754,10.5938189,118.84,118.8,44.9338189]
[1744231660058,6.18353439,118.83,118.8,34.34]
[1744231660251,10.5938189,118.84,118.8,34.34]
[1744231660452,11.54237336,118.83,118.81,0.06431291]
[1744231660650,5.37119912,118.83,118.81,0.06431291]
[1744231661157,5.31247046,118.82,118.81,0.06431291]
[1744231661557,0.05872866,118.83,118.81,0.06431291]
[1744231662461,0.05872866,118.83,118.81,10.65813181]
[1744231663346,0.05872866,118.83,118.82,10.5938189]
[1744231665449,0.05872866,118.83,118.82,72.5938189]
[1744231672767,38.6131,118.88,118.82,72.5938189]
[1744231672967,2.2096,118.89,118.86,10.5938189]
[1744231673167,44.8938189,118.91,118.87,10.5938189]
[1744231673168,6.15400883,118.88,118.87,10.5938189]
[1744231673370,11.43990934,118.88,118.87,10.5938189]
[1744231674266,0.05787289,118.89,118.87,10.5938189]
[1744231675073,6.15987695,118.88,118.87,10.5938189]
[1744231675467,11.45058877,118.88,118.87,10.5938189]
[1744231675865,11.45058877,118.88,118.86,10.65470626]
[1744231676066,5.29071182,118.88,118.87,62.0]
[1744231676266,6.16122011,118.88,118.87,62.0]
[1744231677171,20.31867929,118.88,118.86,0.06088736]
[1744231677372,9.72486039,118.87,118.86,0.06088736]
[1744231677571,18.14056039,118.87,118.86,0.06088736]
[1744231677772,28.73437929,118.87,118.86,0.06088736]
[1744231677973,36.11382413,118.87,118.86,0.06088736]
[1744231679276,25.52000523,118.87,118.86,0.06088736]
[1744231682971,17.10430523,118.87,118.86,0.06088736]
[1744231684273,15.01420523,118.87,118.86,0.06088736]
[1744231684467,11.45056495,118.87,118.86,0.06088736]
[1744231684971,15.01402722,118.87,118.86,0.06088736]
[1744231686081,11.45056495,118.87,118.86,0.06088736]
[1744231686288,23.4302737,118.87,118.86,0.06088736]
[1744231686783,15.0145737,118.87,118.86,0.06088736]
[1744231690985,15.01952283,118.87,118.86,0.06088736]
[1744231695386,11.45300292,118.87,118.86,0.06088736]
[1744231696497,15.02476046,118.87,118.86,0.06088736]
[1744231699185,23.44046046,118.87,118.86,0.06088736]
[1744231699385,34.04706745,118.87,118.86,0.06088736]
[1744231699690,27.88340937,118.87,118.86,0.06088736]
[1744231699989,34.05183963,118.87,118.86,0.06088736]
[1744231701089,15.02953264,118.87,118.86,0.06088736]
[1744231705100,15.02953264,118.87,118.86,10.66749435]
[1744231705287,11.4577751,118.87,118.86,10.66749435]
[1744231706500,5.28934484,118.87,118.86,44.92749435]
[1744231706794,0.05787289,118.89,118.86,44.92749435]
[1744231706997,6.17118698,118.88,118.87,10.60660699]
[1744231707198,11.47292012,118.88,118.87,10.60660699]
[1744231708797,6.17118698,118.88,118.87,10.60660699]
[1744231709197,9.74425664,118.88,118.87,10.60660699]
[1744231709398,6.17118698,118.88,118.87,10.60660699]
[1744231709999,0.05787289,118.89,118.87,10.60660699]
[1744231713699,0.05787289,118.89,118.88,10.60660699]
[1744231716003,0.05787289,118.89,118.86,34.32088736]
[1744231716191,0.05787289,118.89,118.86,0.06088736]
[1744231717307,8.47247289,118.89,118.86,0.06088736]
[1744231718105,9.3828104,118.88,118.86,0.06088736]
[1744231718295,0.05787289,118.89,118.86,0.06088736]
[1744231718496,9.38197867,118.88,118.86,0.06088736]
[1744231718694,0.05787289,118.89,118.86,0.06088736]
[1744231718904,5.81159007,118.88,118.86,0.06088736]
[1744231719105,0.05787289,118.89,118.86,0.06088736]
[1744231719694,9.38395523,118.88,118.86,0.06088736]
[1744231719893,0.05787289,118.89,118.86,0.06088736]
[1744231720294,0.05787289,118.89,118.87,10.60660699]
[1744231720500,0.05787289,118.89,118.86,0.06088736]
[1744231720501,0.05787289,118.89,118.88,10.60660699]
[1744231727015,9.38382436,118.93,118.88,19.02660699]
[1744231727206,9.38382436,118.92,118.89,41.0271]
[1744231727404,46.61968374,118.96,118.91,10.60660699]
[1744231727604,46.61968374,118.96,118.94,10.60660699]
[1744231728011,46.6777301,118.96,118.94,10.66729557]
[1744231728710,46.6777301,118.96,118.94,0.06068858]
[1744231730017,46.6777301,118.96,118.94,62.06068858]
[1744231731804,0.05804636,118.96,118.94,62.06068858]
[1744231734215,0.05804636,118.96,118.94,0.06068858]
[1744231737221,0.05804636,118.96,118.95,62.0]
[1744231737922,0.05804636,118.96,118.94,0.06068858]
[1744231738126,8.46784636,118.96,118.94,0.06068858]
[1744231738922,8.41,118.95,118.94,0.06068858]
[1744231739130,0.05804636,118.96,118.89,34.18]
[1744231739421,50.7207358,118.97,118.89,34.18]
[1744231739616,8.4104,118.95,118.89,34.18]
[1744231739915,50.7207358,118.97,118.89,34.18]
[1744231740116,8.4097,118.96,118.89,34.18]
[1744231740317,0.05828601,118.94,118.92,0.05652691]
[1744231742324,8.46948601,118.94,118.92,0.05652691]
[1744231743625,8.4115,118.93,118.92,0.05652691]
[1744231743933,0.05828601,118.94,118.92,0.05652691]
[1744231745531,0.05828601,118.94,118.92,34.23652691]
[1744231747113,0.05828601,118.94,118.92,50.77726271]
[1744231751229,0.05828601,118.94,118.93,10.58641962]
[1744231751441,0.05828601,118.94,118.92,34.23652691]
[1744231751738,10.58641962,118.93,118.88,10.58641962]
[1744231751925,8.4129,118.91,118.88,10.58641962]
[1744231752523,10.58641962,118.91,118.87,34.18]
[1744231752833,10.58641962,118.91,118.88,0.06354653]
[1744231752834,0.05417703,118.9,118.88,0.06354653]
[1744231754032,8.4143,118.89,118.88,0.06354653]
[1744231754334,0.05417703,118.9,118.88,0.06354653]
[1744231754533,8.46817703,118.9,118.88,0.06354653]
[1744231755332,8.4143,118.89,118.88,0.06354653]
[1744231757535,0.05417703,118.9,118.88,10.64996615]
[1744231757736,0.05417703,118.9,118.89,10.58641962]
[1744231758037,0.05417703,118.9,118.88,10.64996615]
[1744231758234,0.05417703,118.9,118.89,72.58641962]
[1744231758631,5.40208227,118.9,118.89,72.58641962]
[1744231758938,5.40208227,118.9,118.89,62.0]
[1744231760438,0.05417703,118.9,118.89,62.0]
[1744231760735,0.05417703,118.9,118.89,72.58641962]
[1744231761439,0.05417703,118.9,118.89,78.54966998]
[1744231766243,2.1273,118.94,118.89,78.54966998]
[1744231766440,4.4095,118.96,118.9,34.14]
[1744231766646,4.4095,118.96,118.91,16.54966998]
[1744231767442,0.06414205,118.95,118.92,0.06053359]
[1744231767832,0.06414205,118.95,118.93,34.14]
[1744231769642,0.06414205,118.95,118.94,62.0]